[Event "Titled Tuesday Blitz March 15 Early 2022"]
[White "Rengifo Blancas, Renzo Jhonathan"]
[Black "Agibileg, Uurtsaikh"]
[WhiteFideId "3807185"]
[BlackFideId "4901606"]
[WhiteElo "2058"]
[BlackElo "2205"]
[Result "0-1"]
[Round "05"]
[TimeControl "180+1"]
[Date "2022.03.15"]
[WhiteClock "0:00:01"]
[BlackClock "0:01:46"]

1. d4 {[%clk 0:02:56]}  Nf6 {[%clk 0:02:59]} 2. Nf3 {[%clk 0:02:52]}  g6 {[%clk 0:02:57]} 3. c4 {[%clk 0:02:50]}  Bg7 {[%clk 0:02:57]} 4. Nc3 {[%clk 0:02:40]}  O-O {[%clk 0:02:58]} 5. e4 {[%clk 0:02:26]}  d6 {[%clk 0:02:57]} 6. Be2 {[%clk 0:02:18]}  e5 {[%clk 0:02:56]} 7. O-O {[%clk 0:02:16]}  Nc6 {[%clk 0:02:54]} 8. d5 {[%clk 0:02:14]}  Ne7 {[%clk 0:02:55]} 9. Ne1 {[%clk 0:01:59]}  Nd7 {[%clk 0:02:54]} 10. Nd3 {[%clk 0:01:56]}  f5 {[%clk 0:02:54]} 11. f3 {[%clk 0:01:55]}  f4 {[%clk 0:02:54]} 12. Bd2 {[%clk 0:01:55]}  g5 {[%clk 0:02:52]} 13. b4 {[%clk 0:01:54]}  h5 {[%clk 0:02:48]} 14. h3 {[%clk 0:01:52]}  Nf6 {[%clk 0:02:48]} 15. Nf2 {[%clk 0:01:52]}  Ng6 {[%clk 0:02:44]} 16. c5 {[%clk 0:01:50]}  Rf7 {[%clk 0:02:44]} 17. Rc1 {[%clk 0:01:50]}  Bf8 {[%clk 0:02:44]} 18. cxd6 {[%clk 0:01:36]}  cxd6 {[%clk 0:02:44]} 19. a4 {[%clk 0:01:25]}  Rg7 {[%clk 0:02:43]} 20. a5 {[%clk 0:01:25]}  Nh4 {[%clk 0:02:43]} 21. Nb5 {[%clk 0:01:08]}  a6 {[%clk 0:02:33]} 22. Na3 {[%clk 0:01:08]}  g4 {[%clk 0:02:33]} 23. hxg4 {[%clk 0:01:07]}  hxg4 {[%clk 0:02:34]} 24. fxg4 {[%clk 0:01:07]}  Nh5 {[%clk 0:02:35]} 25. gxh5 {[%clk 0:01:06]}  Rxg2+ {[%clk 0:02:28]} 26. Kh1 {[%clk 0:01:05]}  Qg5 {[%clk 0:02:29]} 27. Bg4 {[%clk 0:00:32]}  Bxg4 {[%clk 0:02:27]} 28. Nxg4 {[%clk 0:00:32]}  Rxg4 {[%clk 0:02:27]} 29. Rg1 {[%clk 0:00:26]}  Nf3 {[%clk 0:01:51]} 30. Rxg4 {[%clk 0:00:01]}  Qxg4 {[%clk 0:01:50]} 31. Qf1 {[%clk 0:00:01]}  Qh4+ {[%clk 0:01:46]} 32. Kg2 {[%clk 0:00:01]}  Qg3+ {[%clk 0:01:46]} 0-1


[Site "https://www.chess.com"]

[Event "Titled Tuesday Blitz March 15 Early 2022"]
[White "Riazantsev, Alexander"]
[Black "Mekhitarian, Krikor Sevag"]
[WhiteFideId "4125029"]
[BlackFideId "2107660"]
[WhiteElo "2595"]
[BlackElo "2598"]
[Result "0-1"]
[Round "05"]
[TimeControl "180+1"]
[Date "2022.03.15"]
[WhiteClock "0:00:29"]
[BlackClock "0:00:39"]

1. d4 {[%clk 0:03:00]}  Nf6 {[%clk 0:02:59]} 2. c4 {[%clk 0:03:00]}  g6 {[%clk 0:02:59]} 3. Nc3 {[%clk 0:03:00]}  d5 {[%clk 0:03:00]} 4. Nf3 {[%clk 0:02:59]}  Bg7 {[%clk 0:02:59]} 5. Bg5 {[%clk 0:02:59]}  dxc4 {[%clk 0:02:58]} 6. e3 {[%clk 0:02:56]}  Be6 {[%clk 0:02:56]} 7. Ne5 {[%clk 0:02:27]}  Nd5 {[%clk 0:02:56]} 8. Nxc4 {[%clk 0:02:24]}  c5 {[%clk 0:02:55]} 9. Be2 {[%clk 0:02:17]}  cxd4 {[%clk 0:02:53]} 10. exd4 {[%clk 0:02:17]}  Nc6 {[%clk 0:02:54]} 11. Be3 {[%clk 0:02:17]}  O-O {[%clk 0:02:52]} 12. O-O {[%clk 0:02:16]}  Rc8 {[%clk 0:02:52]} 13. Nxd5 {[%clk 0:01:55]}  Bxd5 {[%clk 0:02:49]} 14. Rc1 {[%clk 0:01:54]}  e6 {[%clk 0:02:40]} 15. a3 {[%clk 0:01:53]}  Qf6 {[%clk 0:02:33]} 16. Nd6 {[%clk 0:01:29]}  Rb8 {[%clk 0:02:33]} 17. Nb5 {[%clk 0:01:27]}  Rfd8 {[%clk 0:02:22]} 18. Qd2 {[%clk 0:01:17]}  h6 {[%clk 0:02:13]} 19. Bxh6 {[%clk 0:01:06]}  Bxh6 {[%clk 0:02:09]} 20. Qxh6 {[%clk 0:01:06]}  a6 {[%clk 0:02:10]} 21. Nc3 {[%clk 0:01:04]}  Nxd4 {[%clk 0:02:10]} 22. Rfe1 {[%clk 0:00:58]}  Bc6 {[%clk 0:01:59]} 23. Qe3 {[%clk 0:00:52]}  Rd7 {[%clk 0:01:46]} 24. Bf1 {[%clk 0:00:52]}  Rbd8 {[%clk 0:01:46]} 25. f3 {[%clk 0:00:52]}  Bxf3 {[%clk 0:01:09]} 26. gxf3 {[%clk 0:00:48]}  Nxf3+ {[%clk 0:01:09]} 27. Kh1 {[%clk 0:00:47]}  Nxe1 {[%clk 0:01:07]} 28. Rxe1 {[%clk 0:00:47]}  Qd4 {[%clk 0:01:04]} 29. Qg3 {[%clk 0:00:42]}  Qd2 {[%clk 0:00:48]} 30. Re2 {[%clk 0:00:41]}  Qc1 {[%clk 0:00:48]} 31. Rf2 {[%clk 0:00:30]}  Rd2 {[%clk 0:00:43]} 32. Ne2 {[%clk 0:00:29]}  Rxe2 {[%clk 0:00:39]} 0-1


[Site "https://www.chess.com"]

[Event "Titled Tuesday Blitz March 15 Early 2022"]
[White "Riehle, Marco"]
[Black "Muradli, Mahammad"]
[WhiteFideId "12904392"]
[BlackFideId "13409301"]
[WhiteElo "2462"]
[BlackElo "2611"]
[Result "0-1"]
[Round "05"]
[TimeControl "180+1"]
[Date "2022.03.15"]
[WhiteClock "0:00:29"]
[BlackClock "0:00:44"]

1. e4 {[%clk 0:03:00]}  d6 {[%clk 0:03:00]} 2. d4 {[%clk 0:02:59]}  Nc6 {[%clk 0:02:59]} 3. d5 {[%clk 0:02:58]}  Nb8 {[%clk 0:02:57]} 4. c4 {[%clk 0:02:58]}  g6 {[%clk 0:02:56]} 5. h4 {[%clk 0:02:53]}  Nf6 {[%clk 0:02:56]} 6. Nc3 {[%clk 0:02:52]}  Bg7 {[%clk 0:02:56]} 7. Bg5 {[%clk 0:02:52]}  c6 {[%clk 0:02:56]} 8. Be2 {[%clk 0:02:49]}  h5 {[%clk 0:02:51]} 9. Nh3 {[%clk 0:02:40]}  Na6 {[%clk 0:02:39]} 10. Nf4 {[%clk 0:02:33]}  Nc5 {[%clk 0:02:36]} 11. f3 {[%clk 0:02:31]}  a5 {[%clk 0:02:36]} 12. Qc2 {[%clk 0:02:24]}  Qb6 {[%clk 0:02:26]} 13. O-O-O {[%clk 0:02:19]}  a4 {[%clk 0:02:23]} 14. Rhg1 {[%clk 0:02:11]}  Nfd7 {[%clk 0:02:09]} 15. g4 {[%clk 0:01:59]}  hxg4 {[%clk 0:02:08]} 16. h5 {[%clk 0:01:59]}  gxh5 {[%clk 0:01:46]} 17. fxg4 {[%clk 0:01:47]}  a3 {[%clk 0:01:44]} 18. b3 {[%clk 0:01:43]}  h4 {[%clk 0:01:44]} 19. dxc6 {[%clk 0:01:28]}  bxc6 {[%clk 0:01:38]} 20. Bxe7 {[%clk 0:01:24]}  Nxb3+ {[%clk 0:01:04]} 21. axb3 {[%clk 0:01:19]}  Qe3+ {[%clk 0:01:04]} 22. Qd2 {[%clk 0:01:12]}  Qxd2+ {[%clk 0:01:04]} 23. Kxd2 {[%clk 0:01:11]}  Kxe7 {[%clk 0:01:04]} 24. g5 {[%clk 0:01:00]}  Nc5 {[%clk 0:01:02]} 25. Kc2 {[%clk 0:00:59]}  h3 {[%clk 0:00:58]} 26. Rh1 {[%clk 0:00:56]}  Rh4 {[%clk 0:00:58]} 27. Nd3 {[%clk 0:00:53]}  Bxc3 {[%clk 0:00:53]} 28. Nxc5 {[%clk 0:00:47]}  Bg7 {[%clk 0:00:48]} 29. Nd3 {[%clk 0:00:40]}  a2 {[%clk 0:00:47]} 30. e5 {[%clk 0:00:40]}  Bf5 {[%clk 0:00:44]} 31. exd6+ {[%clk 0:00:36]}  Kxd6 {[%clk 0:00:45]} 32. g6 {[%clk 0:00:30]}  fxg6 {[%clk 0:00:45]} 33. b4 {[%clk 0:00:29]}  a1=Q {[%clk 0:00:44]} 34. Rxa1 {[%clk 0:00:29]}  Rxa1 {[%clk 0:00:45]} 35. Rh2 {[%clk 0:00:29]}  Rxc4+ {[%clk 0:00:44]} 36. Kd2 {[%clk 0:00:28]}  Bh6+ {[%clk 0:00:43]} 37. Nf4 {[%clk 0:00:29]}  Bxf4# {[%clk 0:00:44]} 0-1


[Site "https://www.chess.com"]

[Event "Titled Tuesday Blitz March 15 Early 2022"]
[White "Rosen, Eric"]
[Black "Bryakin, Mikhail"]
[WhiteFideId "2032562"]
[BlackFideId "4165314"]
[WhiteElo "2362"]
[BlackElo "2417"]
[Result "0-1"]
[Round "05"]
[TimeControl "180+1"]
[Date "2022.03.15"]
[WhiteClock "0:00:02"]
[BlackClock "0:01:42"]

1. d4 {[%clk 0:03:00]}  Nf6 {[%clk 0:02:57]} 2. Bf4 {[%clk 0:03:01]}  g6 {[%clk 0:02:55]} 3. Nc3 {[%clk 0:03:01]}  Bg7 {[%clk 0:02:53]} 4. e4 {[%clk 0:03:01]}  d6 {[%clk 0:02:53]} 5. Qd2 {[%clk 0:03:01]}  c6 {[%clk 0:02:47]} 6. O-O-O {[%clk 0:03:01]}  b5 {[%clk 0:02:46]} 7. f3 {[%clk 0:03:02]}  b4 {[%clk 0:02:39]} 8. Nce2 {[%clk 0:02:58]}  a5 {[%clk 0:02:34]} 9. Kb1 {[%clk 0:02:58]}  Ba6 {[%clk 0:02:30]} 10. Bh6 {[%clk 0:02:55]}  Bxh6 {[%clk 0:02:30]} 11. Qxh6 {[%clk 0:02:56]}  Nbd7 {[%clk 0:02:29]} 12. e5 {[%clk 0:02:39]}  Nd5 {[%clk 0:02:22]} 13. Qg7 {[%clk 0:02:37]}  Rf8 {[%clk 0:02:21]} 14. exd6 {[%clk 0:02:35]}  exd6 {[%clk 0:02:20]} 15. Ng3 {[%clk 0:02:13]}  Qf6 {[%clk 0:02:17]} 16. Qxf6 {[%clk 0:01:43]}  N7xf6 {[%clk 0:02:18]} 17. Bxa6 {[%clk 0:01:43]}  Rxa6 {[%clk 0:02:18]} 18. Nh3 {[%clk 0:01:41]}  h6 {[%clk 0:02:16]} 19. Nf2 {[%clk 0:01:39]}  Kd7 {[%clk 0:02:15]} 20. Nfe4 {[%clk 0:01:26]}  a4 {[%clk 0:02:15]} 21. Rhe1 {[%clk 0:01:23]}  a3 {[%clk 0:02:15]} 22. Nxf6+ {[%clk 0:00:48]}  Nxf6 {[%clk 0:02:16]} 23. c4 {[%clk 0:00:24]}  bxc3 {[%clk 0:02:14]} 24. b3 {[%clk 0:00:25]}  Nd5 {[%clk 0:02:13]} 25. Rd3 {[%clk 0:00:21]}  c2+ {[%clk 0:02:12]} 26. Kc1 {[%clk 0:00:18]}  Nb4 {[%clk 0:02:12]} 27. Rde3 {[%clk 0:00:17]}  Nxa2+ {[%clk 0:02:13]} 28. Kxc2 {[%clk 0:00:13]}  Nb4+ {[%clk 0:02:13]} 29. Kd2 {[%clk 0:00:11]}  a2 {[%clk 0:02:11]} 30. Re7+ {[%clk 0:00:10]}  Kd8 {[%clk 0:02:11]} 31. Rb7 {[%clk 0:00:08]}  Kc8 {[%clk 0:02:08]} 32. Rxb4 {[%clk 0:00:04]}  a1=Q {[%clk 0:02:08]} 33. Rxa1 {[%clk 0:00:04]}  Rxa1 {[%clk 0:02:09]} 34. Ne4 {[%clk 0:00:04]}  Rd8 {[%clk 0:02:09]} 35. Rc4 {[%clk 0:00:03]}  Kb7 {[%clk 0:02:05]} 36. Rc2 {[%clk 0:00:03]}  f5 {[%clk 0:02:03]} 37. Nf2 {[%clk 0:00:03]}  Rg1 {[%clk 0:02:02]} 38. Ke3 {[%clk 0:00:02]}  Rxg2 {[%clk 0:02:02]} 39. h4 {[%clk 0:00:03]}  Re8+ {[%clk 0:02:02]} 40. Kf4 {[%clk 0:00:03]}  Kc7 {[%clk 0:02:02]} 41. d5 {[%clk 0:00:03]}  c5 {[%clk 0:02:02]} 42. b4 {[%clk 0:00:04]}  Kd7 {[%clk 0:02:00]} 43. bxc5 {[%clk 0:00:05]}  dxc5 {[%clk 0:02:01]} 44. h5 {[%clk 0:00:05]}  gxh5 {[%clk 0:02:01]} 45. Kxf5 {[%clk 0:00:05]}  h4 {[%clk 0:02:01]} 46. Ra2 {[%clk 0:00:05]}  Rf8+ {[%clk 0:02:00]} 47. Ke4 {[%clk 0:00:04]}  Rc8 {[%clk 0:02:00]} 48. Ra7+ {[%clk 0:00:04]}  Rc7 {[%clk 0:02:00]} 49. Ra2 {[%clk 0:00:04]}  c4 {[%clk 0:02:00]} 50. d6 {[%clk 0:00:04]}  Kxd6 {[%clk 0:02:00]} 51. Kd4 {[%clk 0:00:04]}  Kd7 {[%clk 0:01:57]} 52. Kc3 {[%clk 0:00:04]}  Kc8 {[%clk 0:01:57]} 53. Ra8+ {[%clk 0:00:04]}  Kb7 {[%clk 0:01:58]} 54. Ra2 {[%clk 0:00:05]}  h3 {[%clk 0:01:58]} 55. Rb2+ {[%clk 0:00:05]}  Kc8 {[%clk 0:01:58]} 56. Nxh3 {[%clk 0:00:06]}  Rxb2 {[%clk 0:01:57]} 57. Kxb2 {[%clk 0:00:07]}  c3+ {[%clk 0:01:57]} 58. Kc2 {[%clk 0:00:07]}  h5 {[%clk 0:01:58]} 59. f4 {[%clk 0:00:06]}  h4 {[%clk 0:01:58]} 60. f5 {[%clk 0:00:06]}  Kd8 {[%clk 0:01:58]} 61. Nf4 {[%clk 0:00:05]}  Rc4 {[%clk 0:01:57]} 62. Nd5 {[%clk 0:00:04]}  h3 {[%clk 0:01:56]} 63. f6 {[%clk 0:00:05]}  Rh4 {[%clk 0:01:48]} 64. f7 {[%clk 0:00:04]}  Rh8 {[%clk 0:01:49]} 65. Nf4 {[%clk 0:00:02]}  Ke7 {[%clk 0:01:41]} 66. Ng6+ {[%clk 0:00:02]}  Kxf7 {[%clk 0:01:42]} 67. Nxh8+ {[%clk 0:00:01]}  Kg7 {[%clk 0:01:42]} 68. Ng6 {[%clk 0:00:01]}  Kxg6 {[%clk 0:01:42]} 69. Kxc3 {[%clk 0:00:02]}  h2 {[%clk 0:01:42]} 0-1


[Site "https://www.chess.com"]

[Event "Titled Tuesday Blitz March 15 Early 2022"]
[White "Rustemov, Alexander"]
[Black "Kovanova, Baira"]
[WhiteFideId "4119002"]
[BlackFideId "4164083"]
[WhiteElo "2756"]
[BlackElo "2190"]
[Result "1-0"]
[Round "05"]
[TimeControl "180+1"]
[Date "2022.03.15"]
[WhiteClock "0:00:47"]
[BlackClock "0:00:10"]

1. d4 {[%clk 0:02:51]}  Nf6 {[%clk 0:02:59]} 2. c4 {[%clk 0:02:50]}  e6 {[%clk 0:02:58]} 3. Nf3 {[%clk 0:02:51]}  d5 {[%clk 0:02:57]} 4. Nc3 {[%clk 0:02:50]}  Nbd7 {[%clk 0:02:57]} 5. cxd5 {[%clk 0:02:49]}  exd5 {[%clk 0:02:56]} 6. Bg5 {[%clk 0:02:49]}  Be7 {[%clk 0:02:55]} 7. e3 {[%clk 0:02:49]}  h6 {[%clk 0:02:54]} 8. Bh4 {[%clk 0:02:48]}  c6 {[%clk 0:02:54]} 9. Bd3 {[%clk 0:02:46]}  O-O {[%clk 0:02:54]} 10. Qc2 {[%clk 0:02:45]}  Re8 {[%clk 0:02:53]} 11. O-O {[%clk 0:02:44]}  Ne4 {[%clk 0:02:53]} 12. Bxe4 {[%clk 0:02:42]}  Bxh4 {[%clk 0:02:53]} 13. Bh7+ {[%clk 0:02:42]}  Kh8 {[%clk 0:02:53]} 14. Nxh4 {[%clk 0:02:42]}  Qxh4 {[%clk 0:02:53]} 15. Bd3 {[%clk 0:02:43]}  Nf6 {[%clk 0:02:34]} 16. Rae1 {[%clk 0:02:43]}  Ng4 {[%clk 0:02:24]} 17. h3 {[%clk 0:02:43]}  Nf6 {[%clk 0:02:24]} 18. f3 {[%clk 0:02:43]}  Kg8 {[%clk 0:02:05]} 19. Qf2 {[%clk 0:02:43]}  Qxf2+ {[%clk 0:02:00]} 20. Kxf2 {[%clk 0:02:43]}  Bd7 {[%clk 0:01:57]} 21. b4 {[%clk 0:02:26]}  Re7 {[%clk 0:01:55]} 22. Re2 {[%clk 0:02:21]}  Ne8 {[%clk 0:01:46]} 23. b5 {[%clk 0:02:13]}  Nd6 {[%clk 0:01:43]} 24. bxc6 {[%clk 0:02:12]}  Bxc6 {[%clk 0:01:43]} 25. a4 {[%clk 0:02:08]}  Rc8 {[%clk 0:01:42]} 26. Rb1 {[%clk 0:02:06]}  g6 {[%clk 0:01:32]} 27. g4 {[%clk 0:02:05]}  Kg7 {[%clk 0:01:31]} 28. a5 {[%clk 0:02:05]}  a6 {[%clk 0:01:30]} 29. Rb3 {[%clk 0:01:53]}  Rce8 {[%clk 0:01:22]} 30. h4 {[%clk 0:01:44]}  f5 {[%clk 0:01:14]} 31. gxf5 {[%clk 0:01:35]}  gxf5 {[%clk 0:01:14]} 32. Rb1 {[%clk 0:01:35]}  Kf6 {[%clk 0:01:14]} 33. Rg1 {[%clk 0:01:34]}  Rg7 {[%clk 0:00:56]} 34. Rxg7 {[%clk 0:01:33]}  Kxg7 {[%clk 0:00:56]} 35. Re1 {[%clk 0:01:31]}  Kf6 {[%clk 0:00:56]} 36. Ne2 {[%clk 0:01:30]}  Nc4 {[%clk 0:00:32]} 37. Bxc4 {[%clk 0:01:28]}  dxc4 {[%clk 0:00:31]} 38. Nc3 {[%clk 0:01:27]}  Rd8 {[%clk 0:00:26]} 39. Rd1 {[%clk 0:01:21]}  Ke6 {[%clk 0:00:24]} 40. e4 {[%clk 0:01:19]}  fxe4 {[%clk 0:00:24]} 41. fxe4 {[%clk 0:01:20]}  Kd6 {[%clk 0:00:24]} 42. Ke3 {[%clk 0:01:18]}  Rg8 {[%clk 0:00:24]} 43. d5 {[%clk 0:01:15]}  Bb5 {[%clk 0:00:24]} 44. Kd4 {[%clk 0:01:15]}  Rg4 {[%clk 0:00:23]} 45. Rf1 {[%clk 0:01:14]}  Rxh4 {[%clk 0:00:23]} 46. Rf6+ {[%clk 0:01:12]}  Kc7 {[%clk 0:00:23]} 47. Rb6 {[%clk 0:00:57]}  Bd7 {[%clk 0:00:21]} 48. Kxc4 {[%clk 0:00:53]}  Rh1 {[%clk 0:00:17]} 49. e5 {[%clk 0:00:52]}  Bf5 {[%clk 0:00:15]} 50. Rf6 {[%clk 0:00:50]}  Bc2 {[%clk 0:00:14]} 51. Rf7+ {[%clk 0:00:49]}  Kc8 {[%clk 0:00:14]} 52. e6 {[%clk 0:00:48]}  Rh4+ {[%clk 0:00:12]} 53. Kc5 {[%clk 0:00:47]}  Bb3 {[%clk 0:00:10]} 54. Rf8+ {[%clk 0:00:47]} 1-0


[Site "https://www.chess.com"]

[Event "Titled Tuesday Blitz March 15 Early 2022"]
[White "Sailer, Mike"]
[Black "Alinasab, Mobina"]
[WhiteFideId "2012901"]
[BlackFideId "12528897"]
[WhiteElo "2109"]
[BlackElo "2052"]
[Result "0-1"]
[Round "05"]
[TimeControl "180+1"]
[Date "2022.03.15"]
[WhiteClock "0:00:03"]
[BlackClock "0:00:54"]

1. d4 {[%clk 0:03:00]}  Nf6 {[%clk 0:02:49]} 2. Nf3 {[%clk 0:03:00]}  e6 {[%clk 0:02:47]} 3. Bf4 {[%clk 0:03:00]}  b6 {[%clk 0:02:47]} 4. e3 {[%clk 0:03:00]}  Bb7 {[%clk 0:02:47]} 5. Be2 {[%clk 0:03:01]}  c5 {[%clk 0:02:46]} 6. O-O {[%clk 0:03:01]}  Be7 {[%clk 0:02:46]} 7. c4 {[%clk 0:03:02]}  cxd4 {[%clk 0:02:43]} 8. exd4 {[%clk 0:03:02]}  d6 {[%clk 0:02:44]} 9. Nc3 {[%clk 0:03:02]}  O-O {[%clk 0:02:43]} 10. a4 {[%clk 0:03:03]}  a6 {[%clk 0:02:42]} 11. a5 {[%clk 0:03:03]}  bxa5 {[%clk 0:02:41]} 12. Qa4 {[%clk 0:03:03]}  Nc6 {[%clk 0:02:41]} 13. d5 {[%clk 0:02:42]}  exd5 {[%clk 0:02:35]} 14. cxd5 {[%clk 0:02:43]}  Nb4 {[%clk 0:02:36]} 15. Qxa5 {[%clk 0:02:35]}  Qxa5 {[%clk 0:02:37]} 16. Rxa5 {[%clk 0:02:35]}  Nbxd5 {[%clk 0:02:37]} 17. Nxd5 {[%clk 0:02:36]}  Nxd5 {[%clk 0:02:38]} 18. Bg3 {[%clk 0:02:28]}  Nb4 {[%clk 0:02:33]} 19. Rd1 {[%clk 0:02:16]}  d5 {[%clk 0:02:28]} 20. Nd4 {[%clk 0:02:08]}  g6 {[%clk 0:02:20]} 21. Bf3 {[%clk 0:02:02]}  Rfc8 {[%clk 0:02:16]} 22. h4 {[%clk 0:01:29]}  Bf6 {[%clk 0:02:09]} 23. h5 {[%clk 0:01:22]}  Rc4 {[%clk 0:02:08]} 24. Nb3 {[%clk 0:01:17]}  Bxb2 {[%clk 0:02:07]} 25. Nc5 {[%clk 0:01:08]}  Bc6 {[%clk 0:02:06]} 26. hxg6 {[%clk 0:00:58]}  hxg6 {[%clk 0:02:06]} 27. Be2 {[%clk 0:00:47]}  Rc2 {[%clk 0:02:00]} 28. Bxa6 {[%clk 0:00:47]}  Nxa6 {[%clk 0:01:48]} 29. Nxa6 {[%clk 0:00:43]}  Bb7 {[%clk 0:01:37]} 30. Nb4 {[%clk 0:00:31]}  Rxa5 {[%clk 0:01:36]} 31. Nxc2 {[%clk 0:00:32]}  Rc5 {[%clk 0:01:33]} 32. Nd4 {[%clk 0:00:26]}  Rc1 {[%clk 0:01:22]} 33. Rxc1 {[%clk 0:00:25]}  Bxc1 {[%clk 0:01:22]} 34. Be5 {[%clk 0:00:22]}  Kf8 {[%clk 0:01:21]} 35. Kf1 {[%clk 0:00:16]}  Ke7 {[%clk 0:01:21]} 36. Ke2 {[%clk 0:00:16]}  f6 {[%clk 0:01:21]} 37. Bb8 {[%clk 0:00:13]}  Bb2 {[%clk 0:01:19]} 38. Ke3 {[%clk 0:00:12]}  Kd7 {[%clk 0:01:13]} 39. Ba7 {[%clk 0:00:10]}  Ba6 {[%clk 0:01:13]} 40. g3 {[%clk 0:00:09]}  Bc4 {[%clk 0:01:13]} 41. Bc5 {[%clk 0:00:09]}  Bc1+ {[%clk 0:01:13]} 42. Kf3 {[%clk 0:00:06]}  Bd3 {[%clk 0:01:13]} 43. Ba7 {[%clk 0:00:06]}  Be4+ {[%clk 0:01:12]} 44. Ke2 {[%clk 0:00:06]}  Kc7 {[%clk 0:01:11]} 45. Bc5 {[%clk 0:00:06]}  f5 {[%clk 0:01:07]} 46. Ke1 {[%clk 0:00:06]}  g5 {[%clk 0:01:04]} 47. Ke2 {[%clk 0:00:06]}  f4 {[%clk 0:00:59]} 48. gxf4 {[%clk 0:00:06]}  gxf4 {[%clk 0:01:00]} 49. Kd1 {[%clk 0:00:03]}  Bb2 {[%clk 0:00:58]} 50. Kd2 {[%clk 0:00:02]}  f3 {[%clk 0:00:54]} 51. Ke3 {[%clk 0:00:03]}  Bc1# {[%clk 0:00:54]} 0-1


[Site "https://www.chess.com"]

[Event "Titled Tuesday Blitz March 15 Early 2022"]
[White "Sanchez, Robert"]
[Black "Chernomordik, Pavel"]
[WhiteFideId "2034360"]
[BlackFideId "2804530"]
[WhiteElo "2290"]
[BlackElo "2249"]
[Result "1/2-1/2"]
[Round "05"]
[TimeControl "180+1"]
[Date "2022.03.15"]
[WhiteClock "0:02:14"]
[BlackClock "0:00:27"]

1. e4 {[%clk 0:02:55]}  g6 {[%clk 0:01:15]} 2. d4 {[%clk 0:02:54]}  Bg7 {[%clk 0:01:14]} 3. Nc3 {[%clk 0:02:54]}  d6 {[%clk 0:01:13]} 4. Be3 {[%clk 0:02:54]}  a6 {[%clk 0:01:13]} 5. f3 {[%clk 0:02:55]}  b5 {[%clk 0:01:13]} 6. Qd2 {[%clk 0:02:55]}  Bb7 {[%clk 0:01:12]} 7. O-O-O {[%clk 0:02:55]}  Nd7 {[%clk 0:01:12]} 8. g4 {[%clk 0:02:56]}  Nb6 {[%clk 0:01:09]} 9. Bd3 {[%clk 0:02:55]}  h6 {[%clk 0:01:06]} 10. h4 {[%clk 0:02:54]}  Nf6 {[%clk 0:01:05]} 11. Nh3 {[%clk 0:02:51]}  Nfd7 {[%clk 0:01:04]} 12. g5 {[%clk 0:02:51]}  h5 {[%clk 0:01:03]} 13. Kb1 {[%clk 0:02:50]}  c5 {[%clk 0:01:02]} 14. dxc5 {[%clk 0:02:51]}  dxc5 {[%clk 0:00:59]} 15. Qf2 {[%clk 0:02:43]}  Qc7 {[%clk 0:00:57]} 16. Nd5 {[%clk 0:02:33]}  Nxd5 {[%clk 0:00:52]} 17. exd5 {[%clk 0:02:34]}  Bxd5 {[%clk 0:00:46]} 18. Bxg6 {[%clk 0:02:29]}  Bxa2+ {[%clk 0:00:39]} 19. Kxa2 {[%clk 0:02:30]}  fxg6 {[%clk 0:00:39]} 20. Kb1 {[%clk 0:02:27]}  Qe5 {[%clk 0:00:37]} 21. Bc1 {[%clk 0:02:26]}  O-O-O {[%clk 0:00:33]} 22. Nf4 {[%clk 0:02:21]}  Qf5 {[%clk 0:00:32]} 23. Nd5 {[%clk 0:02:16]}  Rhe8 {[%clk 0:00:28]} 24. Rhe1 {[%clk 0:02:14]}  e6 {[%clk 0:00:27]} 1/2-1/2


[Site "https://www.chess.com"]

[Event "Titled Tuesday Blitz March 15 Early 2022"]
[White "Santos Ruiz, Miguel"]
[Black "Kevlishvili, Robby"]
[WhiteFideId "22291482"]
[BlackFideId "1040634"]
[WhiteElo "2780"]
[BlackElo "2909"]
[Result "0-1"]
[Round "05"]
[TimeControl "180+1"]
[Date "2022.03.15"]
[WhiteClock "0:00:04"]
[BlackClock "0:00:20"]

1. e4 {[%clk 0:02:54]}  e5 {[%clk 0:02:57]} 2. Nf3 {[%clk 0:02:53]}  Nc6 {[%clk 0:02:58]} 3. Bc4 {[%clk 0:02:53]}  Bc5 {[%clk 0:02:57]} 4. d3 {[%clk 0:02:53]}  Nf6 {[%clk 0:02:57]} 5. Nc3 {[%clk 0:02:53]}  h6 {[%clk 0:02:51]} 6. O-O {[%clk 0:02:47]}  a6 {[%clk 0:02:50]} 7. Be3 {[%clk 0:02:35]}  d6 {[%clk 0:02:38]} 8. Bxc5 {[%clk 0:02:25]}  dxc5 {[%clk 0:02:38]} 9. Bd5 {[%clk 0:02:21]}  Ne7 {[%clk 0:02:27]} 10. Nxe5 {[%clk 0:01:49]}  Nexd5 {[%clk 0:02:24]} 11. exd5 {[%clk 0:01:50]}  O-O {[%clk 0:01:18]} 12. Qf3 {[%clk 0:01:42]}  b6 {[%clk 0:01:17]} 13. d6 {[%clk 0:01:32]}  Be6 {[%clk 0:01:17]} 14. dxc7 {[%clk 0:01:28]}  Qxc7 {[%clk 0:01:17]} 15. Rfe1 {[%clk 0:01:28]}  Rad8 {[%clk 0:01:15]} 16. Re2 {[%clk 0:01:21]}  b5 {[%clk 0:01:12]} 17. Rae1 {[%clk 0:01:12]}  Rd4 {[%clk 0:01:00]} 18. Qc6 {[%clk 0:01:03]}  Qa7 {[%clk 0:00:49]} 19. Qf3 {[%clk 0:00:57]}  Qc7 {[%clk 0:00:49]} 20. h3 {[%clk 0:00:50]}  Rc8 {[%clk 0:00:46]} 21. b3 {[%clk 0:00:44]}  Qa5 {[%clk 0:00:43]} 22. Ne4 {[%clk 0:00:40]}  Nxe4 {[%clk 0:00:43]} 23. Rxe4 {[%clk 0:00:40]}  Rxe4 {[%clk 0:00:42]} 24. Qxe4 {[%clk 0:00:36]}  Qxa2 {[%clk 0:00:41]} 25. Ng6 {[%clk 0:00:30]}  Re8 {[%clk 0:00:38]} 26. Qc6 {[%clk 0:00:29]}  Rb8 {[%clk 0:00:30]} 27. Rxe6 {[%clk 0:00:17]}  fxe6 {[%clk 0:00:27]} 28. Qxe6+ {[%clk 0:00:16]}  Kh7 {[%clk 0:00:27]} 29. Qe4 {[%clk 0:00:14]}  Qa1+ {[%clk 0:00:26]} 30. Kh2 {[%clk 0:00:14]}  Qd4 {[%clk 0:00:24]} 31. Nf8+ {[%clk 0:00:07]}  Kg8 {[%clk 0:00:24]} 32. Qh7+ {[%clk 0:00:07]}  Kf7 {[%clk 0:00:23]} 33. Qf5+ {[%clk 0:00:08]}  Qf6 {[%clk 0:00:21]} 34. Qxf6+ {[%clk 0:00:03]}  gxf6 {[%clk 0:00:22]} 35. Nd7 {[%clk 0:00:04]}  Rc8 {[%clk 0:00:21]} 36. Nb6 {[%clk 0:00:04]}  Rd8 {[%clk 0:00:20]} 37. Kg3 {[%clk 0:00:04]}  Rd6 {[%clk 0:00:20]} 0-1


[Site "https://www.chess.com"]